Cogmind - Beta 13 @@@ ROGUE MODE // 2024.04.15 @ 20:44:57 Player: Exceptionally Mediocre Result: Destroyed by MR-3NR(R) with Subdweller Laser Performance ------------- Evolutions (0) 0 Regions Visited (2) 400 Robots Destroyed (24) 120 Value Destroyed (563) 563 Prototype IDs (0) 0 Alien Tech Used (0) 0 Bonus (0) 0 TOTAL SCORE: 1083 Bonus ------- None Cogmind --------- Core Integrity 0/250 Matter 233/300 Energy 187/200 System Corruption 3% Temperature Cool (6) Movement Rolling (135) Ox3 Location -10/Subcaves Parts ------- > --- POWER (1) -------- Subdweller Power Source > --- PROPULSION (2) --- Armored Wheel Armored Wheel > --- UTILITY (2) ------ Huge Storage Unit Makeshift Light Armor Plating > --- WEAPON (2) ------- Beam Cannon Barrage Gun > --- INVENTORY (25) --- Light Ion Engine Makeshift Power Source Armored Wheel Armored Wheel Subdweller Monowheel Improved Hover Unit Improved Hover Unit Improved Hover Unit Improved Hover Unit Heat Sink Large Matter Pod (150) Hacking Suite Medium Laser Small Laser Small Laser Small Laser Beam Rifle Beam Rifle Beam Rifle Beam Rifle Subdweller Laser Beam Cannon Assault Rifle Light Assault Rifle Mining Claw Peak State ------------ > --- POWER ------------ Subdweller Power Source > --- PROPULSION ------- Armored Wheel Armored Wheel > --- UTILITY ---------- Huge Storage Unit Makeshift Light Armor Plating > --- WEAPON ----------- Beam Cannon Barrage Gun > --- INVENTORY -------- Light Ion Engine Makeshift Power Source Armored Wheel Armored Wheel Subdweller Monowheel Improved Hover Unit Improved Hover Unit Improved Hover Unit Improved Hover Unit Heat Sink Large Matter Pod Hacking Suite Medium Laser Small Laser Small Laser Small Laser Beam Rifle Beam Rifle Beam Rifle Beam Rifle Subdweller Laser Beam Cannon Assault Rifle Light Assault Rifle Mining Claw [Rating: 19] Favorites ----------- Power Light Ion Engine Engine Light Ion Engine Propulsion Armored Wheel Wheel Armored Wheel Utility Huge Storage Unit Storage Huge Storage Unit Processor Signal Interpreter Protection Makeshift Light Armor Plating Weapon Medium Laser Energy Gun Medium Laser Energy Cannon Beam Cannon Ballistic Gun Light Assault Rifle Slashing Weapon Mining Claw Build | -11 -10 -10 ------- Run | Yrd Mat Sub Slots Evolved . | . . . Power . | . . . Propulsion . | . . . Utility . | . . . Weapon . | . . . Parts Attached 26 | 7 13 6 Power 4 | 1 2 1 Engine 4 | 1 2 1 Core . | . . . Reactor . | . . . Propulsion 7 | 2 5 . Treads . | . . . Leg . | . . . Wheel 7 | 2 5 . Hover . | . . . Flight . | . . . Utility 4 | 1 2 1 Device . | . . . Storage 2 | 1 1 . Processor 1 | . 1 . Hackware . | . . . Protection 1 | . . 1 Artifact . | . . . Weapon 11 | 3 4 4 Energy Gun 5 | 3 2 . Energy Cannon 1 | . 1 . Ballistic Gun 4 | . 1 3 Ballistic Cannon . | . . . Launcher . | . . . Special Weapon . | . . . Impact Weapon . | . . . Slashing Weapon 1 | . . 1 Piercing Weapon . | . . . Special Melee Weapon . | . . . Unidentified Prototypes . | . . . Parts Lost 8 | . 8 . Power 2 | . 2 . Propulsion 3 | . 3 . Utility . | . . . Weapon 3 | . 3 . Highest Loss Streak 4 | . 4 . To Critical Strikes . | . . . Average Slot Usage (%) 96 | . 93 100 Engine 14 | . 14 14 Wheel 26 | . 25 28 Storage 14 | . 15 14 Processor 7 | . 9 4 Protection 3 | . . 9 Energy Gun 15 | . 20 7 Energy Cannon 6 | . 2 14 Ballistic Gun 4 | . 4 4 Naked Turns . | . . . Heaviest Build 95 | 12 92 95 Greatest Support 24 | 20 24 24 Greatest Overweight (x) 8 | 1 8 3 Average Overweight (x) 3 | . 3 3 Largest Inventory Capacity 25 | 8 25 25 Average Capacity 23 | 6 23 25 Most Carried 25 | 2 25 25 Average Carried 17 | . 14 24 Final Capacity 25 | 8 25 25 Final Carried 25 | 2 24 25 Class Distribution -------------------- 96% | Mutant 3% | Scavenger-Mutant Dominant Class ---------------- Mutant | -10/Materials Mutant | -10/Subcaves Resources | -11 -10 -10 ----------- Run | Yrd Mat Sub Matter Collected 642 | 203 355 84 Remotely . | . . . Salvage Created 838 | . 739 99 Parts 47 | . 44 3 Haulers Intercepted 1 | . 1 . Recyclers Shooed 2 | . 2 . Parts Field Recycled . | . . . Retrieved Matter . | . . . Parts Self-Destructed 5 | . . 5 Prevented . | . . . Kills | -11 -10 -10 ------- Run | Yrd Mat Sub Combat Hostiles Destroyed 18 | . 16 2 Guns 17 | . 15 2 Classes Destroyed 9 | . 8 1 Worker 1 | . 1 . Builder 1 | . 1 . Hauler 1 | . 1 . Recycler 1 | . 1 . Operator 1 | . 1 . Watcher 1 | . 1 . Swarmer 5 | . 5 . Grunt 11 | . 11 . Subdweller 2 | . . 2 Best Kill Streak 4 | . 4 2 Combat Bots Only 3 | . 3 2 Max Kills in Single Turn 2 | . 2 1 Gunslinging 1 | . 1 . Exploded . | . . . Melee . | . . . Uniques/NPCs Destroyed . | . . . Combat | -11 -10 -10 -------- Run | Yrd Mat Sub Hostile Shots Fired 101 | . 86 15 Missed 28 | . 25 3 Damage Taken 1052 | . 799 253 Core 251 | . 171 80 Absorbed by Shields . | . . . Core Remaining (%) 100 | 100 . . Volleys Fired 96 | . 81 15 Largest 2 | . 2 2 Hottest 110 | . 110 88 Shots Fired 184 | . 155 29 Gun 164 | . 148 16 Cannon 20 | . 7 13 Launcher . | . . . Special . | . . . Kinetic 50 | . 35 15 Thermal 134 | . 120 14 Explosive . | . . . Electromagnetic . | . . . Robot Hit Streak 10 | . 10 7 Robot Miss Streak 5 | . 5 2 Penetration Max . | . . . Secondary Targets 3 | . 3 . Max Gunslinging Chain 1 | . 1 . Shots Hit Robots 118 | . 102 16 Core Hits 43 | . 39 4 Critical Kills . | . . . Critical Parts Destroyed 1 | . . 1 Critical Strikes 9 | . 8 1 Burn 8 | . 8 . Destroy 1 | . . 1 Melee Attacks 2 | . . 2 Impact . | . . . Slashing 2 | . . 2 Piercing . | . . . Sneak Attacks . | . . . Combat Hostiles . | . . . Follow-up Attacks . | . . . Damage Inflicted 1404 | . 1165 239 Guns 1317 | . 1165 152 Cannons 87 | . . 87 Explosions . | . . . Melee . | . . . Ramming . | . . . Kinetic 398 | . 246 152 Thermal 1006 | . 919 87 Explosive . | . . . Electromagnetic . | . . . Impact . | . . . Slashing . | . . . Piercing . | . . . Highest Corruption 3 | . 3 3 Average Corruption 3 | . 3 3 Corruption Purged . | . . . Corruption Blocked . | . . . Effects 34 | . 22 12 Message Errors 9 | . 6 3 Matter Fused 6 | . 2 4 Heat Flow Errors 6 | . 4 2 Energy Discharges 5 | . 3 2 Parts Fused 1 | . 1 . Data Loss (minor) 1 | . 1 . Data Loss (major) 2 | . 2 . Misfires 2 | . 1 1 Alerts 1 | . 1 . Weapon Failures 1 | . 1 . Overload Shots . | . . . Overflow Damage . | . . . Projectiles . | . . . Explosions . | . . . Melee . | . . . Knockbacks . | . . . Impact . | . . . Kinetic . | . . . Secondary . | . . . Self-Inflicted Damage . | . . . Shots . | . . . Rammed . | . . . Targets Rammed . | . . . Kicked . | . . . Crushed . | . . . Highest Temperature 315 | . 315 236 Average Temperature 88 | . 91 46 Received Heat Transfer 393 | . 333 60 Effects 6 | . 6 . Energy Bleed 1 | . 1 . Interference 5 | . 5 . Siege Activations . | . . . Robots Corrupted . | . . . Combat Hostiles . | . . . Parts Fried . | . . . Impact Corruptions . | . . . Robots Melted 1 | . 1 . Combat Hostiles 1 | . 1 . Parts Melted 11 | . 10 1 Heat Transferred 3491 | . 3306 185 Parts Sabotaged . | . . . Parts Stolen . | . . . Parts Stripped . | . . . Power Chain Reactions . | . . . Alert | -11 -10 -10 ------- Run | Yrd Mat Sub Peak Influence 187 | . 187 . Initial . | . . . Average 60 | . 63 . Maximum Alert Level . | . . . Low Security (%) 100 | 100 100 . Level 1 . | . . . Level 2 . | . . . Level 3 . | . . . Level 4 . | . . . Level 5 . | . . . High Security . | . . . Max Security . | . . . Squads Dispatched 3 | . 3 . Investigation 1 | . 1 . Extermination . | . . . Reinforcement 2 | . 2 . Assault . | . . . Garrison . | . . . Intercept . | . . . Searches Triggered . | . . . Construction Impeded . | . . . Haulers Reinforced . | . . . Active Scanning Responses . | . . . Cargo Convoy Interrupts . | . . . Stealth | -11 -10 -10 --------- Run | Yrd Mat Sub Distress Signals . | . . . Communications Jammed . | . . . Distress Signals . | . . . Times Spotted 30 | . 26 4 Peak Tracking Total 3 | . 3 2 Tactical Retreats 1 | . 1 . Traps | -11 -10 -10 ------- Run | Yrd Mat Sub Traps Triggered 5 | . 5 . Indirectly . | . . . Trap Hack Attempts . | . . . Triggered . | . . . Disarmed . | . . . Reprogrammed . | . . . Reused . | . . . Traps Extracted . | . . . Installed . | . . . Triggered . | . . . Machines | -11 -10 -10 ---------- Run | Yrd Mat Sub Machines Disabled . | . . . Max in Single Turn . | . . . Machines Repaired . | . . . Machines Dismantled . | . . . Machines Sabotaged . | . . . Overloaded Fab Kills . | . . . Hacking | -11 -10 -10 --------- Run | Yrd Mat Sub Machines Accessed 5 | . 5 . Terminals 4 | . 4 . Fabricators . | . . . Repair Stations . | . . . Recycling Units 1 | . 1 . Scanalyzers . | . . . Garrison Access . | . . . Total Hacks 10 | . 10 . Successful 4 | . 4 . Failed 6 | . 6 . Catastrophic . | . . . Database Lockouts . | . . . Manual 7 | . 7 . Terminals 7 | . 7 . Fabricators . | . . . Repair Stations . | . . . Recycling Units 3 | . 3 . Scanalyzers . | . . . Garrison Access . | . . . Terminal Hacks . | . . . Fabricator Hacks . | . . . Repair Station Hacks . | . . . Recycling Unit Hacks 1 | . 1 . Retrieve Components 1 | . 1 . Scanalyzer . | . . . Garrison Access Hacks . | . . . Unauthorized Hacks 3 | . 3 . Terminals 3 | . 3 . Botnet 3 | . 3 . Fabricators . | . . . Repair Stations . | . . . Recycling Units . | . . . Scanalyzers . | . . . Garrison Access . | . . . Data Cores Recovered . | . . . Used . | . . . Hacking Detections 2 | . 2 . Full Trace Events 2 | . 2 . Feedback Events . | . . . Feedback Blocked . | . . . Robot Schematics Acquired . | . . . Robots Built . | . . . Authchips . | . . . Time . | . . . Total Robot Build Rating . | . . . Part Schematics Acquired . | . . . Parts Built . | . . . Authchips . | . . . Time . | . . . Total Part Build Rating . | . . . Parts Repaired . | . . . Time . | . . . Parts Recycled . | . . . Recycled Matter . | . . . Retrieved Matter . | . . . Retrieved Components 4 | . 4 . Parts Scanalyzed . | . . . Part Schematics Acquired . | . . . Parts Damaged . | . . . Bothacking | -11 -10 -10 ------------ Run | Yrd Mat Sub Used RIF Installer . | . . . Robots Hacked . | . . . Non-combat . | . . . Combat . | . . . Robot Hacks Applied . | . . . Relay Couplers Released . | . . . Fabnet Peak Effective % . | . . . Robots Rewired . | . . . Allies Hacked . | . . . Hacks Repelled . | . . . Allies | -11 -10 -10 -------- Run | Yrd Mat Sub Total Allies . | . . . Largest Group . | . . . Highest-Rated Group . | . . . Highest-Rated Ally . | . . . Total Orders . | . . . Ally Attacks . | . . . Total Damage . | . . . Kills . | . . . Allies Corrupted . | . . . Allies Melted . | . . . Intel | -11 -10 -10 ------- Run | Yrd Mat Sub Robot Analysis Total . | . . . Derelict Logs Recovered 2 | . . 2 Drone Launches . | . . . Drone Recoveries . | . . . Exploration | -11 -10 -10 ------------- Run | Yrd Mat Sub Turns Passed 1964 | 49 1235 680 Spaces Moved 1205 | 46 698 461 Core 6 | 6 . . Treads . | . . . Legs . | . . . Wheels 1199 | 40 698 461 Hover . | . . . Flight . | . . . Fastest Speed 50 | 50 80 135 Average Speed 132 | 80 134 135 Slowest Speed 200 | 100 200 135 Overloaded Moves . | . . . Propulsion Burnouts . | . . . Robots Hopped . | . . . Cave-ins Triggered . | . . . Exploration Rate (%) 43 | 3 96 31 Regions Visited 2 Branch Regions 1 Pre-discovered Areas 2 | . . 2 Known Exits Taken 1 | . 1 . Unknown Exits Taken 1 | 1 . . Scrap Searched . | . . . Spaces Dug . | . . . Terrain Destroyed . | . . . Melee . | . . . Projectile . | . . . AOE . | . . . Terrain Rammed . | . . . Walls Destroyed . | . . . Machines Disabled . | . . . Actions | -11 -10 -10 --------- Run | Yrd Mat Sub Total 1391 | 54 844 493 Wait 18 | . 18 . Move 1203 | 45 697 461 Hop . | . . . Pick Up 38 | 2 31 5 Fast Attach 7 | 6 1 . Attach 9 | . 9 . Detach 1 | . 1 . Swap 10 | 1 3 6 Drop 7 | . 3 4 Fire 96 | . 81 15 Melee 2 | . . 2 Ram . | . . . Kick . | . . . Crush . | . . . Escape Stasis . | . . . Rewire . | . . . Trap . | . . . Miscellaneous . | . . . Route ------- -11/Scrapyard -10/Materials (discovered 5 exits: *Mat x3 / [*Min] / *Sub) -10/Subcaves (discovered 2 exits: [*Mat x2]) History --------- Turn | Location | Event 40 | -11/Scrapyard | Discovered new exit (range 12) 50 | -11/Scrapyard | Entered Materials 184 | -10/Materials | Discovered new exit (range 16) 310 | -10/Materials | Build established: Mutant 384 | -10/Materials | Discovered new exit (range 8) 551 | -10/Materials | Lost 4 parts (1p2n1w) 902 | -10/Materials | Core integrity fell below 50% 1001 | -10/Materials | Discovered new exit (range 15) 1073 | -10/Materials | Discovered new exit (range 10) 1085 | -10/Materials | Identified exit to Materials 1275 | -10/Materials | Discovered new exit (range 8) 1283 | -10/Materials | Identified exit to Subcaves 1285 | -10/Materials | Entered Subcaves 1294 | -10/Subcaves | Learned location of Storage (-7) 1454 | -10/Subcaves | Learned location of Recycling (-7) 1500 | -10/Subcaves | Discovered new exit (range 9) 1635 | -10/Subcaves | Core integrity fell below 20% 1721 | -10/Subcaves | Discovered new exit (range 7) 1965 | -10/Subcaves | Destroyed by MR-3NR(R) with Subdweller Laser Last Messages --------------- 01610_ Subatomizers dissect the Lgt. Assault Rifle. 01619_ System corrupted: Energy discharge (-26). 01651_ Critical hit (Destroy). 01652_ WR-4ZK(R) destroyed. 01655_ YF-B3D(R) suffers critical hit (Destroy). 01655_ Destroyed Sub. Power Source. 01663_ Sub. Optics melted. 01663_ YF-B3D(R) destroyed. 01665_ System corrupted: Energy discharge (-41). 01676_ Dropped Wheel. 01676_ Acquired Sub. Monowheel. 01676_ Acquired 56 matter. 01679_ Dropped Lgt. Ion Engine. 01683_ Acquired 10 matter. 01699_ Dropped Lgt. Ion Engine. 01699_ Acquired Mak. Power Source. 01721_ EXIT=FOUND 01892_ System corrupted: Matter fused (-6). 01939_ J|RX8XLGB7EPGB=0SKWF%C4W#AVVUJ9YT4BNMKMP Map ----- +----------------------------------------------------+ | ?????????????????????????????????????????????????? | | ?????????????????????????????????????????????????? | | ?????????????????????????????????????????????????? | | ?????????????????????????????????????????????????? | | ?????????????????????????????????????????????????? | | ?????????????????????????????????????????????????? | | ?????????????????????????????????????????????????? | | ?????????????????????????????????????????????????? | | ?????????????????????????????????????????????????? | | ?????????????????????????????????????????????????? | | ?????????????????????????????????????????????????? | | ?????????????????????????????????????????????????? | | ?????????????????????????????????????????????????? | | ?????????????????????????????????????????????????? | | ?????????????????????????????????????????????????? | | ??????????????????"?"##??????????????????????????? | | ??????????????????" "" ??????????????????????????? | | ?????????????????"" """#?????????????????????????? | | ?????????????? """""" #???????####?????????????? | | ??????????????#"""R ##????## ###?????????### | | ???????????????# R ###??# #?????????# | | ??????????????## #??# #??######?# | | ?????????????## ##?? #?## ##?# | | ?????????????# #??# #?## ### | | ?????????????# #??# #?# | | ?????????????# @ #### #?# | | ????????????# ## #?# # | | ???????????# ### ## ## ### ## # | | ?????????????????# ???# ### | | ?????????????????#?????# ##?# | | ???????????????????????## ## ##??# ## | | ????????????????????????## ##### #####???#####? | | ?????????????????????????####???#####????????????? | | ?????????????????????????????????????????????????? | | ?????????????????????????????????????????????????? | | ?????????????????????????????????????????????????? | | ?????????????????????????????????????????????????? | | ?????????????????????????????????????????????????? | | ?????????????????????????????????????????????????? | | ?????????????????????????????????????????????????? | | ?????????????????????????????????????????????????? | | ?????????????????????????????????????????????????? | | ?????????????????????????????????????????????????? | | ?????????????????????????????????????????????????? | | ?????????????????????????????????????????????????? | | ?????????????????????????????????????????????????? | | ?????????????????????????????????????????????????? | | | | | | | +----------------------------------------------------+ Best States ------------- Heat Dissipation 25 Energy Generation 15 Energy Capacity 200 Matter Stores 300 Matter Capacity 300 Sight Range 16 Terrain Scan Density 10 Armor Coverage 100 Evasion (%) 44 Item Schematics ----------------- None Robot Schematics ------------------ None Fabricated ------------ Nothing Alien Tech Used ----------------- None Achievements -------------- None Challenges ------------ None Game ------ Seed ExplosiveCloakingPendant Manual? 0 Play Time 00:16:05 Cumulative 61.4 hours Start 2024.04.15 @ 20:30:09 End 2024.04.15 @ 20:44:57 Sessions 1 Manual Loads 0 Difficulty Rogue Special Mode None Game No. 73 Rogue 73 Adventurer 0 Explorer 0 Win Type - Total 0 Types 0/0/0/0/0/0/0/0/0 Lore% 18 Gallery% 39 Achievement% 29 Wizard Run 0 Options --------- Layout 1 ASCII 0 Keyboard 1 Movement Vi Keybinds 0 Fullscreen 1 Font 24/Smallcaps Map View 50x35 Zoom Use 0% Tactical HUD 1 Map Filters NONE Filters NONE Steam 1 RUN: a76a4fbb-47d4-4ac2-b524-9612fd2fa471